Cogmind - Beta 14 *** ADVENTURER MODE // 2024.10.13 @ 23:21:00 Player: Sovereign Result: Destroyed by H-55 Commando with Assault Rifle Performance ------------- Evolutions (2) 1000 Regions Visited (4) 800 Robots Destroyed (96) 480 Value Destroyed (3090) 3090 Prototype IDs (2) 40 Alien Tech Used (0) 0 Bonus (643) 643 TOTAL SCORE: 6053 Bonus ------- High Alert Combat Kills 591 Follower Combat Kills 75 Friendly Fire -23 Cogmind --------- Core Integrity 0/550 Matter 128/300 Energy 160/160 System Corruption 0% Temperature Cool (0) Movement Walking (190) Ox1 Location -8/Materials Parts ------- > --- POWER (1) -------- Light Nuclear Core > --- PROPULSION (3) --- Aluminum Leg > --- UTILITY (4) ------ Medium Storage Unit Signal Interpreter Advanced Targeting Computer > --- WEAPON (3) ------- Particle Cannon > --- INVENTORY (10) --- Light Ion Engine Reinforced Ion Engine Reinforced Ion Engine Aluminum Leg Medium Matter Pod (0) Compact Matter Pod (0) Improved Assault Rifle Peak State ------------ > --- POWER ------------ Reinforced Ion Engine > --- PROPULSION ------- Light Treads Improved Treads > --- UTILITY ---------- Medium Storage Unit Improved Sensor Array Signal Interpreter Advanced Targeting Computer > --- WEAPON ----------- Heavy Particle Cannon High-powered Shotgun Improved Light Cannon > --- INVENTORY -------- Light Ion Engine Reinforced Ion Engine Light Nuclear Core Medium Matter Pod Compact Matter Pod Particle Cannon Advanced Beam Cannon Shotgun Improved Assault Rifle [Rating: 23] Favorites ----------- Power Reinforced Ion Engine Engine Reinforced Ion Engine Power Core Light Nuclear Core Propulsion Light Treads Treads Light Treads Leg Aluminum Leg Wheel Wheel Utility Signal Interpreter Device Sensor Array Storage Small Storage Unit Processor Signal Interpreter Weapon Mini Grenade Launcher Energy Gun Particle Gun Energy Cannon Beam Cannon Ballistic Gun Assault Rifle Ballistic Cannon Improved Light Cannon Launcher Mini Grenade Launcher Special Weapon Welding Torch Impact Weapon Heavy Hammer Build | -11 -10 -9 -9 -8 ------- Run | Yrd Mat Mat Sto Mat Slots Evolved 4 | . . 2 . 2 Power . | . . . . . Propulsion 1 | . . 1 . . Utility 2 | . . 1 . 1 Weapon 1 | . . . . 1 Parts Attached 55 | 4 5 15 17 14 Power 9 | . 2 1 4 2 Engine 7 | . 2 1 4 . Core 2 | . . . . 2 Reactor . | . . . . . Propulsion 17 | 1 1 6 7 2 Treads 6 | 1 1 1 3 . Leg 9 | . . 3 4 2 Wheel 2 | . . 2 . . Hover . | . . . . . Flight . | . . . . . Utility 9 | 1 . 3 2 3 Device 3 | . . 2 . 1 Storage 4 | 1 . . 2 1 Processor 2 | . . 1 . 1 Hackware . | . . . . . Protection . | . . . . . Artifact . | . . . . . Weapon 20 | 2 2 5 4 7 Energy Gun 1 | . . 1 . . Energy Cannon 4 | . . 1 . 3 Ballistic Gun 8 | 2 . 1 2 3 Ballistic Cannon 2 | . . . 1 1 Launcher 2 | . . 1 1 . Special Weapon 1 | . 1 . . . Impact Weapon 2 | . 1 1 . . Slashing Weapon . | . . . . . Piercing Weapon . | . . . . . Special Melee Weapon . | . . . . . Unidentified Prototypes 2 | . . . 1 1 Parts Lost 23 | . . 6 4 13 Power 3 | . . 1 1 1 Propulsion 8 | . . 3 1 4 Utility 4 | . . 1 2 1 Weapon 8 | . . 1 . 7 Highest Loss Streak 10 | . . 5 3 10 To Critical Strikes . | . . . . . Average Slot Usage (%) 85 | . 79 84 95 80 Engine 9 | . 11 7 10 6 Treads 14 | . 25 8 7 13 Leg 9 | . . 7 24 3 Wheel 1 | . . 8 . . Device 4 | . . 9 6 5 Storage 13 | . 14 11 13 13 Processor 7 | . . 10 11 13 Energy Cannon 1 | . . 2 2 4 Ballistic Gun 11 | . 22 6 6 7 Ballistic Cannon 2 | . . . 2 7 Launcher 4 | . . . 10 3 Impact Weapon 2 | . 3 8 . . Peak Build Rating 23 | 4 8 11 15 23 Average Rating 11 | 3 6 9 12 18 On Entrance 7 | . 4 8 11 14 Naked Turns . | . . . . . Heaviest Build 35 | 8 15 15 27 35 Greatest Support 60 | 20 40 60 43 43 Greatest Overweight (x) 7 | 1 . 3 1 7 Average Overweight (x) . | . . . . . Largest Inventory Capacity 10 | 8 8 8 10 10 Average Capacity 8 | 7 8 8 8 10 Most Carried 10 | 6 8 7 8 10 Average Carried 6 | 4 6 4 6 7 Final Capacity 10 | 8 8 8 10 10 Final Carried 7 | 6 7 7 6 7 Class Distribution -------------------- 57% | Mutant 26% | Scavenger-Mutant 11% | Skirmisher 3% | Gunner Dominant Class ---------------- Mutant | -10/Materials Scavenger-Mutant | -9/Materials Scavenger-Mutant | -9/Storage Skirmisher | -8/Materials Resources | -11 -10 -9 -9 -8 ----------- Run | Yrd Mat Mat Sto Mat Matter Collected 1528 | 231 226 158 516 397 Remotely . | . . . . . Salvage Created 2728 | . 401 498 1019 810 Parts 170 | . 18 19 84 49 Haulers Intercepted 1 | . . . 1 . Recyclers Shooed 3 | . 1 . 2 . Parts Field Recycled . | . . . . . Retrieved Matter . | . . . . . Parts Self-Destructed . | . . . . . Prevented . | . . . . . Kills | -11 -10 -9 -9 -8 ------- Run | Yrd Mat Mat Sto Mat Combat Hostiles Destroyed 79 | . 10 14 34 21 Melee 2 | . 1 1 . . Guns 33 | . 7 6 14 6 Cannons 17 | . . . 6 11 AOE 18 | . . . 14 4 Classes Destroyed 13 | . 3 1 7 2 Worker 4 | . . . 2 2 Builder 3 | . . . 1 2 Hauler 1 | . . . 1 . Recycler 1 | . . . . 1 Operator 2 | . . . 2 . Watcher 6 | . 2 1 1 2 Swarmer 13 | . 3 4 3 3 Grunt 49 | . 7 9 20 13 Brawler 1 | . . . 1 . Duelist 1 | . . . 1 . Protector 1 | . . . 1 . Sentry 12 | . . 1 8 3 Hunter 2 | . . . . 2 Best Kill Streak 14 | . 3 7 14 10 Combat Bots Only 11 | . 3 7 11 4 Max Kills in Single Turn 3 | . 1 1 3 2 Gunslinging . | . . . . . Exploded 3 | . . . 3 1 Melee 1 | . 1 1 . . Uniques/NPCs Destroyed . | . . . . . Combat | -11 -10 -9 -9 -8 -------- Run | Yrd Mat Mat Sto Mat Hostile Shots Fired 481 | . 59 135 70 217 Missed 108 | . 17 30 19 42 Damage Taken 4106 | . 382 855 816 2053 Core 998 | . 106 207 126 559 Absorbed by Shields . | . . . . . Ignored by Resistances 1221 | . 118 271 234 598 Regen/Repaired (Parts) 14 | . . . 14 . Core Remaining (%) 57 | 100 57 . 16 . Volleys Fired 215 | . 48 29 64 74 Largest 3 | . 2 1 2 3 Hottest 139 | . 40 65 90 139 Shots Fired 310 | . 71 29 107 103 Gun 183 | . 71 29 51 32 Cannon 75 | . . . 13 62 Launcher 52 | . . . 43 9 Special . | . . . . . Kinetic 217 | . 71 25 58 63 Thermal 41 | . . 4 6 31 Explosive 52 | . . . 43 9 Electromagnetic . | . . . . . Robot Hit Streak 21 | . 21 9 14 21 Robot Miss Streak 3 | . 2 2 1 3 Penetration Max . | . . . . . Secondary Targets 1 | . 1 . . . Max Gunslinging Chain 1 | . 1 . . . Shots Hit Robots 253 | . 62 41 65 85 Core Hits 180 | . 17 15 75 73 Critical Kills 2 | . . . 1 1 Critical Parts Destroyed 4 | . 1 3 . . Critical Strikes 8 | . 1 4 2 1 Burn 1 | . . 1 . . Destroy 2 | . . . 1 1 Blast 1 | . . . 1 . Smash 4 | . 1 3 . . Melee Attacks 26 | . 4 22 . . Impact 26 | . 4 22 . . Slashing . | . . . . . Piercing . | . . . . . Sneak Attacks . | . . . . . Combat Hostiles . | . . . . . Follow-up Attacks . | . . . . . Damage Inflicted 6959 | . 808 964 2763 2424 Guns 2022 | . 642 270 560 550 Cannons 1577 | . . . 194 1383 Explosions 2500 | . . . 2009 491 Melee 860 | . 166 694 . . Ramming . | . . . . . Kinetic 2767 | . 642 242 668 1215 Thermal 832 | . . 28 86 718 Explosive 2500 | . . . 2009 491 Electromagnetic . | . . . . . Impact 860 | . 166 694 . . Slashing . | . . . . . Piercing . | . . . . . Highest Corruption . | . . . . . Average Corruption . | . . . . . Corruption Purged . | . . . . . Corruption Blocked . | . . . . . Overload Shots . | . . . . . Overflow Damage 349 | . 99 187 24 39 Projectiles 10 | . . . . 10 Explosions 53 | . . . 24 29 Melee 286 | . 99 187 . . Knockbacks 17 | . 2 9 1 5 Impact 9 | . 1 8 . . Kinetic 5 | . . . 1 4 Secondary 3 | . 1 1 . 1 Self-Inflicted Damage 232 | . . . 219 13 Shots 10 | . . . 9 1 Rammed . | . . . . . Targets Rammed . | . . . . . Kicked . | . . . . . Crushed . | . . . . . Highest Temperature 417 | . 27 32 104 417 Average Temperature 103 | . 13 14 25 146 Received Heat Transfer 2376 | . 246 417 282 1431 Effects 4 | . . . . 4 Interference 4 | . . . . 4 Siege Activations . | . . . . . Robots Corrupted 9 | . 2 7 . . Combat Hostiles 9 | . 2 7 . . Parts Fried 7 | . 3 4 . . Impact Corruptions 14 | . 3 11 . . Robots Melted . | . . . . . Combat Hostiles . | . . . . . Parts Melted 1 | . . . . 1 Heat Transferred 1434 | . . 148 176 1110 Parts Sabotaged . | . . . . . Parts Stolen . | . . . . . Parts Stripped . | . . . . . Power Chain Reactions . | . . . . . Alert | -11 -10 -9 -9 -8 ------- Run | Yrd Mat Mat Sto Mat Peak Influence 1097 | . 240 355 1097 735 Initial 328 | . . 14 3 328 Average 378 | . 61 184 696 567 Maximum Alert Level 3 | . 1 1 3 3 Low Security (%) 43 | 100 97 42 15 . Level 1 14 | . 2 57 8 8 Level 2 21 | . . . 9 85 Level 3 20 | . . . 66 5 Level 4 . | . . . . . Level 5 . | . . . . . High Security . | . . . . . Max Security . | . . . . . Squads Dispatched 17 | . 1 . 9 7 Investigation 5 | . 1 . 1 3 Extermination . | . . . . . Reinforcement 5 | . . . 2 3 Assault 4 | . . . 3 1 Garrison 3 | . . . 3 . Intercept . | . . . . . Searches Triggered . | . . . . . Construction Impeded 1 | . . . . 1 Haulers Reinforced . | . . . . . Active Scanning Responses . | . . . . . Cargo Convoy Interrupts . | . . . . . Stealth | -11 -10 -9 -9 -8 --------- Run | Yrd Mat Mat Sto Mat Distress Signals 4 | . . 1 2 1 Communications Jammed . | . . . . . Distress Signals . | . . . . . Times Spotted 100 | . 12 17 41 30 Peak Tracking Total 12 | . 3 7 8 12 Tactical Retreats 1 | . . 1 . . Traps | -11 -10 -9 -9 -8 ------- Run | Yrd Mat Mat Sto Mat Traps Triggered 4 | . 1 . 2 1 Indirectly . | . . . . . Trap Hack Attempts . | . . . . . Triggered . | . . . . . Disarmed . | . . . . . Reprogrammed . | . . . . . Reused . | . . . . . Traps Extracted . | . . . . . Installed . | . . . . . Triggered . | . . . . . Machines | -11 -10 -9 -9 -8 ---------- Run | Yrd Mat Mat Sto Mat Machines Disabled 10 | . . . 8 2 Max in Single Turn 2 | . . . 2 1 Machines Repaired . | . . . . . Machines Dismantled . | . . . . . Machines Sabotaged . | . . . . . Overloaded Fab Kills . | . . . . . Hacking | -11 -10 -9 -9 -8 --------- Run | Yrd Mat Mat Sto Mat Machines Accessed 17 | . 4 4 7 2 Terminals 14 | . 4 4 4 2 Fabricators . | . . . . . Repair Stations 1 | . . . 1 . Recycling Units 1 | . . . 1 . Scanalyzers . | . . . . . Garrison Access 1 | . . . 1 . Total Hacks 41 | . 9 8 18 6 Successful 22 | . 4 4 11 3 Failed 19 | . 5 4 7 3 Catastrophic 3 | . 2 . . 1 Database Lockouts . | . . . . . Manual 7 | . . 1 3 3 Terminals 35 | . 9 8 12 6 Fabricators . | . . . . . Repair Stations 3 | . . . 3 . Recycling Units 1 | . . . 1 . Scanalyzers . | . . . . . Garrison Access 2 | . . . 2 . Terminal Hacks 16 | . 4 3 6 3 Record 6 | . . 2 2 2 Robot Analysis 1 | . . . 1 . Open Door 1 | . . . 1 . Alert Level 1 | . 1 . . . Unreport Threat 1 | . . 1 . . Locate Traps 1 | . . . 1 . Transport Status 1 | . 1 . . . Investigation Status 1 | . 1 . . . Recall Investigation 3 | . 1 . 1 1 Fabricator Hacks . | . . . . . Repair Station Hacks 2 | . . . 2 . Scan Component 1 | . . . 1 . Repair 1 | . . . 1 . Recycling Unit Hacks 1 | . . . 1 . Retrieve Matter 1 | . . . 1 . Scanalyzer . | . . . . . Garrison Access Hacks . | . . . . . Unauthorized Hacks 3 | . . 1 2 . Terminals 3 | . . 1 2 . Assimilate 3 | . . 1 2 . Fabricators . | . . . . . Repair Stations . | . . . . . Recycling Units . | . . . . . Scanalyzers . | . . . . . Garrison Access . | . . . . . Data Cores Recovered . | . . . . . Used . | . . . . . Hacking Detections 12 | . 3 2 5 2 Full Trace Events 6 | . 1 1 2 2 Feedback Events . | . . . . . Feedback Blocked . | . . . . . Robot Schematics Acquired . | . . . . . Robots Built . | . . . . . Authchips . | . . . . . Time . | . . . . . Total Robot Build Rating . | . . . . . Part Schematics Acquired . | . . . . . Parts Built . | . . . . . Authchips . | . . . . . Time . | . . . . . Total Part Build Rating . | . . . . . Parts Repaired 1 | . . . 1 . Time 32 | . . . 32 . Parts Recycled . | . . . . . Recycled Matter . | . . . . . Retrieved Matter 92 | . . . 92 . Retrieved Components . | . . . . . Parts Scanalyzed . | . . . . . Part Schematics Acquired . | . . . . . Parts Damaged . | . . . . . Bothacking | -11 -10 -9 -9 -8 ------------ Run | Yrd Mat Mat Sto Mat Used RIF Installer . | . . . . . Robots Hacked . | . . . . . Non-combat . | . . . . . Combat . | . . . . . Robot Hacks Applied . | . . . . . Relay Couplers Released . | . . . . . Fabnet Peak Effective % . | . . . . . Robots Rewired . | . . . . . Allies Hacked . | . . . . . Hacks Repelled . | . . . . . Allies | -11 -10 -9 -9 -8 -------- Run | Yrd Mat Mat Sto Mat Total Allies 2 | . . . 2 . Largest Group 2 | . . . 2 . Highest-Rated Group 62 | . . . 62 . Highest-Rated Ally 31 | . . . 31 . Total Orders . | . . . . . Ally Attacks 33 | . . . 33 . Total Damage 379 | . . . 379 . Kills 5 | . . . 5 . Allies Corrupted . | . . . . . Allies Melted . | . . . . . Intel | -11 -10 -9 -9 -8 ------- Run | Yrd Mat Mat Sto Mat Robot Analysis Total 1 | . . . 1 . Derelict Logs Recovered . | . . . . . Drone Launches . | . . . . . Drone Recoveries . | . . . . . Exploration | -11 -10 -9 -9 -8 ------------- Run | Yrd Mat Mat Sto Mat Turns Passed 2737 | 67 838 419 813 600 Spaces Moved 1329 | 46 430 222 414 217 Core 29 | 18 . 1 . 10 Treads 855 | 28 430 51 143 203 Legs 346 | . . 71 271 4 Wheels 99 | . . 99 . . Hover . | . . . . . Flight . | . . . . . Fastest Speed 50 | 50 160 80 120 120 Average Speed 143 | 119 160 112 134 166 Slowest Speed 400 | 160 160 200 190 400 Overloaded Moves . | . . . . . Propulsion Burnouts . | . . . . . Robots Hopped . | . . . . . Cave-ins Triggered . | . . . . . Exploration Rate (%) 35 | 5 57 19 76 19 Regions Visited 4 Branch Regions 1 Pre-discovered Areas . | . . . . . Known Exits Taken 2 | . . 1 1 . Unknown Exits Taken 2 | 1 1 . . . Scrap Searched . | . . . . . Spaces Dug . | . . . . . Terrain Destroyed 334 | . . . 281 53 Melee . | . . . . . Projectile 1 | . . . . 1 AOE 333 | . . . 281 52 Terrain Rammed . | . . . . . Walls Destroyed . | . . . . . Machines Disabled . | . . . . . Actions | -11 -10 -9 -9 -8 --------- Run | Yrd Mat Mat Sto Mat Total 1818 | 57 507 326 568 360 Wait 129 | . 11 26 48 44 Move 1325 | 45 429 221 413 217 Hop . | . . . . . Pick Up 48 | 8 7 11 11 11 Fast Attach 8 | 2 . . 6 . Attach 27 | 2 3 11 1 10 Detach . | . . . . . Swap 20 | . 2 4 10 4 Drop 20 | . 3 2 15 . Fire 215 | . 48 29 64 74 Melee 26 | . 4 22 . . Ram . | . . . . . Kick . | . . . . . Crush . | . . . . . Escape Stasis . | . . . . . Rewire . | . . . . . Trap . | . . . . . Miscellaneous . | . . . . . Route ------- -11/Scrapyard -10/Materials (discovered 2 exits: *Mat / [*Min]) -9/Materials -9/Storage -8/Materials History --------- Turn | Location | Event 5 | -11/Scrapyard | Discovered new exit (range 15) 68 | -11/Scrapyard | Entered Materials 93 | -10/Materials | Discovered new exit (range 15) 317 | -10/Materials | Build established: Mutant 636 | -10/Materials | Discovered new exit (range 7) 906 | -10/Materials | Entered another Materials area 906 | -9/Materials | Evolved 2 slots: Propulsion x1, Utility x1 1091 | -9/Materials | Destroyed 7 combat bots 1093 | -9/Materials | Lost 5 parts (3n1u1w) 1206 | -9/Materials | Core integrity fell below 50% 1273 | -9/Materials | Discovered new exit (range 12) 1286 | -9/Materials | Identified exit to Storage 1325 | -9/Materials | Entered Storage 1335 | -9/Storage | Met a pair of Derelict thieves 1364 | -9/Storage | Build established: Scavenger-Mutant 1473 | -9/Storage | Destroyed 9 combat bots 1532 | -9/Storage | Garrison activated, responded to threat 1600 | -9/Storage | Destroyed 11 combat bots 1825 | -9/Storage | Lost 3 parts (1p1n1u) 1886 | -9/Storage | Core integrity fell below 20% 2016 | -9/Storage | Repaired Mni. Grenade Launcher 2095 | -9/Storage | Build established: Mutant 2116 | -9/Storage | Discovered new exit (range 14) 2125 | -9/Storage | First assault squad dispatched 2137 | -9/Storage | Identified exit to Materials 2138 | -9/Storage | Entered Materials 2138 | -8/Materials | Evolved 2 slots: Utility x1, Weapon x1 2538 | -8/Materials | First assault squad dispatched 2666 | -8/Materials | Core integrity fell below 50% 2684 | -8/Materials | Core integrity fell below 20% 2720 | -8/Materials | Lost 10 parts (1p3n1u5w) 2738 | -8/Materials | Destroyed by H-55 Commando with Assault Rifle Last Messages --------------- 02690_ Acquired 30 matter. 02690_ K-01 Serf collects debris. 02697_ G-47 Trooper destroyed. 02698_ K-01 Serf collects debris. 02705_ Critical hit (Burn: +37). 02705_ G-47 Trooper destroyed. 02705_ K-01 Serf collects debris. 02711_ G-47 Trooper suffers critical hit (Destroy). 02711_ G-47 Trooper destroyed. 02711_ K-01 Serf collects debris. 02716_ M-13 Machinist repairs Wheel. 02716_ K-01 Serf collects debris. 02722_ Acquired Aluminum Leg. 02723_ K-01 Serf collects debris. 02726_ Acquired Lgt. Nuclear Core. 02727_ K-01 Serf collects debris. 02734_ Acquired Aluminum Leg. 02735_ Penetrated by Slug. 02738_ Shotgun destroyed. Map ----- +----------------------------------------------------+ | ?????????????????????????????????????????????????? | | ?????????????????????????????????????????????????? | | ?????????????????????????????????????????????????? | | ?????????????????????????????????????????????????? | | ?????????????????????????????????????????????????? | | ?????????????????????????????????????????????????? | | ?????????????????????????????????????????????????? | | ?????????????????????????????????????????????????? | | ?????????????????????????????????????????????????? | | ?????????????????????????????????????????????????? | | ?????????????????????????????????????????????????? | | ?????????????????????????????????????????????????? | | ??????????????????????????????????????# ?????????? | | ????????????????????????????????????? /??????????? | | ???????????????????????????????????? #??????????? | | ??????????????????????????????????? #??????????? | | ???????????????????????????######## #??????????? | | ??????????????????????????? #??????????? | | ?????????????????????????###%" #??????????? | | ???????????????????#########[ " " #??????????? | | ???????????????????# #=% " #???#??????? | | ???????????????????# k #%% " #?? ??????? | | ???????????????????# k #=% % #?? ???????? | | ???????????????????# %!#! #?* ???????? | | ???????????????????# !! [#k! h #? ??????? | | ???????????????????# %%@ m|% # ??????? | | ???????????????????# =[[!#!* # ???????? | | ???????????????????# =%##[ + ???????? | | ???????????????????# [## [ # ??????? | | ???????????????????########## #??#######?? | | ??????????????????????# # #### #?? | | ??????????????????????# "T" #?? | | ?????????????########## #?? | | ?????????????# # #?? | | ?????????????# # ###+#### ##### ! #?? | | ?????????????# ## ## ##+###?## ##?? | | ?????????????# ## ## #?? ?# #??? | | ?????????????# ## ## "" #??? # #??? | | ?????????????# ## ## "" #?????? + #??? | | ?????????????# ! ## ## """ #???????# #?## | | ?????????????# ! ##= *## "" #???????# #?# | | ?????????????# ## ## """ #???????# #?# | | ?????????????####+##### = # """ #????#### #?# | | ???????????????# # """ #???##! #?# | | ???????????????# T # " #???#! ### | | ???????????????# # #???#! # | | ???????????????##+#+### # ]#???#! # | | ???????????????# #############???#! # | | ???????????????# = ! #???????????????##! # # | | ???????????????# #????????????????## # ! | +----------------------------------------------------+ Best States ------------- Heat Dissipation 42 Energy Generation 14 Energy Capacity 265 Matter Stores 390 Matter Capacity 450 Sight Range 16 Robot Scan Range 15 Terrain Scan Density 10 Resistance: KI 20 Resistance: TH 20 Resistance: EX 20 Resistance: EM 20 Resistance: I 20 Resistance: S 20 Resistance: P 20 Evasion (%) 55 Targeting Accuracy 8 Recoil Reduction 3 Offensive Hacking 10 Item Schematics ----------------- None Robot Schematics ------------------ None Fabricated ------------ Nothing Alien Tech Used ----------------- None Achievements -------------- GoHome() Challenges ------------ None Game ------ Seed MasterFocalStatue Manual? 0 Play Time 00:48:33 Cumulative 6.4 hours Start 2024.10.11 @ 13:10:20 End 2024.10.13 @ 23:21:00 Sessions 7 Manual Loads 0 Difficulty Adventurer Special Mode None Game No. 5 Rogue 2 Adventurer 3 Explorer 0 Win Type - Total 0 Types 0/0/0/0/0/0/0/0/0 Lore% 3 Gallery% 11 Achievement% 15 Wizard Run 0 Options --------- Layout 1 ASCII 0 Keyboard 0 Movement Mouse Keybinds 0 Fullscreen 2 Font 24/X11 Map View 50x35 Zoom Use 0% Tactical HUD 1 Map Filters NONE Filters NONE Steam 1 RUN: f5febd76-a626-48b6-87a1-6fc0102c5d94